fUSD/lending_fUSD_20260319
["ID","MTS","AMOUNT","RATE_DAILY","PERIOD"]
[408548307,1773878998091,500.0,0.00030136,120]
[408548308,1773878998153,166.98506404,0.00030136,120]
[408548309,1773879000070,500.0,0.00030136,120]
[408548310,1773879000614,500.0,0.00030136,120]
[408548311,1773879001839,500.0,0.00030136,120]
[408548312,1773879003951,183.08601956,0.00030136,120]
[408548313,1773879006694,180.44981884,0.00030136,120]
[408548314,1773879012918,845.55,0.00030136,120]
[408548315,1773879015483,225.83001313,0.00030136,120]
[408548316,1773879017324,224.59024148,0.00030136,120]
[408548317,1773879017397,500.0,0.00030136,120]
[408548318,1773879018646,500.0,0.00030136,120]
[408548319,1773879020280,213.97231056,0.00030136,120]
[408548320,1773879022425,210.21316489,0.00030136,120]
[408548321,1773879022809,500.0,0.00030136,120]
[408548322,1773879025357,437.7107385,0.00030136,120]
[408548323,1773879025965,471.90482857,0.00030136,120]
[408548324,1773879026030,609.66,0.00030136,120]
[408548325,1773879026855,500.0,0.00030136,120]
[408548326,1773879027219,500.0,0.00030136,120]
[408548335,1773879031625,-297.0,0.00010811,2]
[408548337,1773879031650,-238.20832,0.00010811,2]
[408548339,1773879031668,-61.79168,0.00010811,2]
[408548340,1773879031690,-1200.0,0.00010811,2]
[408548342,1773879031715,-239.0,0.00010811,2]
[408548343,1773879031730,-8334.775071,0.00010812,2]
[408548345,1773879031761,-1070.41664,0.00010812,2]
[408548347,1773879031786,-4383.77488554,0.00010812,2]
[408548349,1773879031800,-9974.87924242,0.00010812,2]
[408548351,1773879031813,-86936.71108695,0.00010812,2]
[408548353,1773879031829,-4330.39089611,0.00010812,2]
[408548355,1773879031839,-166.66,0.00010959,2]
[408548357,1773879031848,-4358.41,0.00011046,2]
[408548359,1773879031858,-6664.19171553,0.00011099,2]
[408548360,1773879031868,-6664.19171545,0.00011099,2]
[408548361,1773879031887,-500.0,0.0001114,2]
[408548362,1773879031909,-166.66,0.00011145,2]
[408548363,1773879031925,-200.0,0.00011322,2]
[408548364,1773879031950,-934.07,0.00011322,2]
[408548365,1773879031962,-1568.27,0.00011322,2]
[408548366,1773879031974,-2990.63846575,0.00011322,2]
[408548367,1773879031989,-12449.73153425,0.00011322,2]
[408548368,1773879032002,-350.83,0.00011322,2]
[408548369,1773879032012,-3353.227582,0.00011322,2]
[408548370,1773879032023,-166.66,0.0001133,2]
[408548371,1773879032033,-12818.1,0.0001133,2]
[408548372,1773879032042,-430.8,0.0001133,2]
[408548373,1773879032051,-150.99,0.0001133,2]
[408548374,1773879032060,-8954.51941151,0.0001133,2]
[408548375,1773879032078,-316.1078,0.0001133,2]
[408548376,1773879032089,-729.36278849,0.0001133,2]
[408548377,1773879032097,-183.93,0.00011365,3]
[408548378,1773879032106,-681.19999952,0.00011365,2]
[408548379,1773879032120,-166.7,0.00011377,2]
[408548380,1773879032129,-206.18,0.00011413,2]
[408548381,1773879032138,-500.0,0.00011425,2]
[408548382,1773879032147,-6664.19171545,0.00011432,2]
[408548383,1773879032157,-1171.7,0.00011507,2]
[408548384,1773879032166,-166.66,0.00011516,2]
[408548385,1773879032176,-4664.3105138,0.00011657,2]
[408548386,1773879032186,-900.46755752,0.00011658,2]
[408548387,1773879032195,-166.66,0.00011702,2]
[408548388,1773879032204,-500.0,0.00011726,2]
[408548389,1773879032214,-181.14751527,0.00011747,2]
[408548390,1773879032223,-151.0,0.00011751,2]
[408548391,1773879032232,-151.0,0.00011751,2]
[408548392,1773879032241,-151.0,0.00011751,2]
[408548393,1773879032250,-151.0,0.00011751,2]
[408548394,1773879032260,-243.80892341,0.00011751,2]
[408548395,1773879032269,-200.0,0.00011751,2]
[408548396,1773879032279,-151.0,0.00011751,2]
[408548397,1773879032288,-151.0,0.00011751,2]
[408548398,1773879032298,-151.0,0.00011751,2]
[408548399,1773879032307,-16.68098654,0.00011751,2]
[408548400,1773879033339,174.60845628,0.00030136,120]
[408548403,1773879037737,-134.31901346,0.00011751,2]
[408548404,1773879037749,-151.0,0.00011751,2]
[408548405,1773879037759,-151.0,0.00011751,2]
[408548406,1773879037769,-151.0,0.00011751,2]
[408548407,1773879037779,-151.0,0.00011751,2]
[408548408,1773879037789,-151.0,0.00011751,2]
[408548409,1773879037798,-151.0,0.00011751,2]
[408548410,1773879037809,-151.0,0.00011751,2]
[408548411,1773879037819,-151.0,0.00011751,2]
[408548412,1773879037829,-151.0,0.00011751,2]
[408548413,1773879037839,-151.0,0.00011751,2]
[408548414,1773879037848,-151.0,0.00011751,2]
[408548415,1773879037859,-151.0,0.00011751,2]
[408548416,1773879037868,-151.0,0.00011751,2]
[408548418,1773879037878,-151.0,0.00011751,2]
[408548419,1773879037888,-151.0,0.00011751,2]
[408548421,1773879037897,-151.0,0.00011751,2]
[408548422,1773879037907,-500.0,0.00011756,2]
[408548423,1773879037917,-500.0,0.00011756,2]
[408548424,1773879037927,-500.0,0.00011756,2]
[408548425,1773879037937,-500.0,0.00011756,2]
[408548426,1773879037946,-436.47014041,0.00011756,2]
[408548427,1773879037955,-500.0,0.00011756,2]
[408548428,1773879037965,-647.98168512,0.00011756,2]
[408548429,1773879037974,-647.98168512,0.00011756,2]
[408548430,1773879037983,-647.98168512,0.00011756,2]
[408548431,1773879037992,-647.98168512,0.00011756,2]
[408548432,1773879038002,-647.98168512,0.00011756,2]
[408548433,1773879038011,-647.98168512,0.00011756,2]
[408548434,1773879038020,-647.98168512,0.00011756,2]
[408548435,1773879038029,-647.98168512,0.00011756,2]
[408548436,1773879038042,-647.98168512,0.00011756,2]
[408548437,1773879038052,-647.98168512,0.00011756,2]
[408548438,1773879038061,-647.98168512,0.00011756,2]
[408548439,1773879038070,-647.98168512,0.00011756,2]
[408548440,1773879038079,-647.98168512,0.00011756,2]
[408548441,1773879038089,-647.98168512,0.00011756,2]
[408548442,1773879038098,-647.98168512,0.00011756,2]
[408548443,1773879038107,-647.98168512,0.00011756,2]
[408548444,1773879038116,-647.98168512,0.00011756,2]
[408548445,1773879038126,-647.98168512,0.00011756,2]
[408548446,1773879038135,-647.98168512,0.00011756,2]
[408548447,1773879038144,-647.98168512,0.00011756,2]
[408548448,1773879038153,-647.98168512,0.00011756,2]
[408548449,1773879038163,-647.98168512,0.00011756,2]
[408548450,1773879038172,-647.98168512,0.00011756,2]
[408548451,1773879038181,-647.98168512,0.00011756,2]
[408548452,1773879038191,-647.98168512,0.00011756,2]
[408548453,1773879038200,-647.98168512,0.00011756,2]
[408548454,1773879038210,-647.98168512,0.00011756,2]
[408548455,1773879038219,-647.98168512,0.00011756,2]
[408548456,1773879038228,-647.98168512,0.00011756,2]
[408548457,1773879038236,-647.98168512,0.00011756,2]
[408548458,1773879038245,-647.98168512,0.00011756,2]
[408548459,1773879038255,-647.98168512,0.00011756,2]
[408548460,1773879038263,-647.98168512,0.00011756,2]
[408548461,1773879038272,-647.98168512,0.00011756,2]
[408548462,1773879038281,-647.98168512,0.00011756,2]
[408548463,1773879038290,-647.98168512,0.00011756,2]
[408548464,1773879038299,-647.98168512,0.00011756,2]
[408548465,1773879038308,-647.98168512,0.00011756,2]
[408548466,1773879038318,-647.98168512,0.00011756,2]
[408548467,1773879038327,-647.98168512,0.00011756,2]
[408548468,1773879038336,-647.98168512,0.00011756,2]
[408548469,1773879038345,-647.98168512,0.00011756,2]
[408548470,1773879038354,-647.98168512,0.00011756,2]
[408548471,1773879038364,-647.98168512,0.00011756,2]
[408548472,1773879038374,-647.98168512,0.00011756,2]
[408548473,1773879038387,-647.98168512,0.00011756,2]
[408548474,1773879038397,-647.98168512,0.00011756,2]
[408548475,1773879038406,-647.98168512,0.00011756,2]
[408548476,1773879038415,-647.98168512,0.00011756,2]
[408548477,1773879038425,-647.98168512,0.00011756,2]
[408548478,1773879038434,-234.1618846,0.00011756,2]
[408548479,1773879038444,-652.75186827,0.00011756,2]
[408548480,1773879038456,-652.75186827,0.00011756,2]
[408548481,1773879038470,-652.75186827,0.00011756,2]
[408548482,1773879038479,-652.75186827,0.00011756,2]
[408548483,1773879038489,-652.75186827,0.00011756,2]
[408548484,1773879038499,-652.75186827,0.00011756,2]
[408548485,1773879038508,-652.75186827,0.00011756,2]
[408548486,1773879038517,-652.75186827,0.00011756,2]
[408548487,1773879038526,-652.75186827,0.00011756,2]
[408548488,1773879038536,-652.75186827,0.00011756,2]
[408548489,1773879038546,-652.75186827,0.00011756,2]
[408548490,1773879038555,-652.75186827,0.00011756,2]
[408548491,1773879038564,-652.75186827,0.00011756,2]
[408548492,1773879038573,-652.75186827,0.00011756,2]
[408548493,1773879038582,-652.75186827,0.00011756,2]
[408548494,1773879038591,-652.75186827,0.00011756,2]
[408548495,1773879038601,-652.75186827,0.00011756,2]
[408548496,1773879038610,-652.75186827,0.00011756,2]
[408548497,1773879038619,-652.75186827,0.00011756,2]
[408548498,1773879038629,-652.75186827,0.00011756,2]
[408548499,1773879038640,-652.75186827,0.00011756,2]
[408548500,1773879038649,-652.75186827,0.00011756,2]
[408548501,1773879038658,-652.75186827,0.00011756,2]
[408548502,1773879038667,-652.75186827,0.00011756,2]
[408548503,1773879038676,-652.75186827,0.00011756,2]
[408548504,1773879038686,-652.75186827,0.00011756,2]
[408548505,1773879038695,-652.75186827,0.00011756,2]
[408548506,1773879038704,-652.75186827,0.00011756,2]
[408548507,1773879038713,-652.75186827,0.00011756,2]
[408548508,1773879038722,-652.75186827,0.00011756,2]
[408548509,1773879038731,-652.75186827,0.00011756,2]
[408548510,1773879038740,-652.75186827,0.00011756,2]
[408548511,1773879038749,-500.0,0.00011756,2]
[408548512,1773879038758,-276.16166428,0.00011756,2]
[408548513,1773879038768,-153.58276153,0.00011756,2]
[408548514,1773879038777,-716.36608889,0.00011756,2]
[408548515,1773879038787,-716.36608889,0.00011756,2]
[408548516,1773879038796,-716.36608889,0.00011756,2]
[408548517,1773879038806,-716.36608889,0.00011756,2]
[408548518,1773879038815,-716.36608889,0.00011756,2]
[408548519,1773879038824,-716.36608889,0.00011756,2]
[408548520,1773879038834,-716.36608889,0.00011756,2]
[408548521,1773879038843,-716.36608889,0.00011756,2]
[408548522,1773879038852,-500.0,0.00011756,2]
[408548523,1773879038861,-322.08800788,0.00011756,2]
[408548524,1773879038870,-1216.36608885,0.00011756,2]
[408548525,1773879038879,-500.0,0.00011756,2]
[408548526,1773879038888,-500.0,0.00011756,2]
[408548527,1773879038898,-500.0,0.00011756,2]
[408548528,1773879038908,-500.0,0.00011756,2]
[408548529,1773879038917,-500.0,0.00011756,2]
[408548530,1773879038926,-201.6779019,0.00011756,2]
[408548531,1773879038935,-500.0,0.00011756,2]
[408548532,1773879038944,-500.0,0.00011756,2]
[408548533,1773879038954,-500.0,0.00011756,2]
[408548534,1773879038963,-49479.71375344,0.00011757,2]
[408548537,1773879039945,-332.54064714,0.00011757,2]
[408548538,1773879040413,-277.1987,0.00011757,2]
[408548539,1773879040502,-589.89471263,0.00011757,2]
[408548540,1773879040515,-4783.16358,0.00011757,2]
[408548542,1773879040526,-631.17250714,0.00011757,2]
[408548543,1773879040537,-1386.70499995,0.00011757,2]
[408548544,1773879042041,500.0,0.00030136,120]
[408548545,1773879042532,267.93468162,0.00030136,120]
[408548557,1773879042667,-334.6569536,0.00011757,2]
[408548558,1773879042851,500.0,0.00030136,120]
[408548559,1773879042897,-3038.3,0.00011757,2]
[408548560,1773879043031,-27757.23982867,0.00011757,2]
[408548561,1773879043043,-709568.67492661,0.00011757,2]
[408548566,1773879043846,380.27710213,0.00030136,120]
[408548567,1773879045543,-117820.0,0.00011757,2]
[408548568,1773879045585,-780.89978183,0.00011757,2]
[408548569,1773879045596,-22037.16805794,0.00011757,2]
[408548570,1773879045722,-48912.13487972,0.00011757,2]
[408548580,1773879048061,500.0,0.00030136,120]
[408548581,1773879048127,195.34295975,0.00030136,120]
[408548582,1773879053569,500.0,0.00030136,120]
[408548583,1773879067719,160.98185401,0.00030136,120]
[408548584,1773879069456,1629.76,0.00030136,120]
[408548585,1773879072882,500.0,0.00030136,120]
[408548586,1773879074756,167.4357996,0.00030136,120]
[408548587,1773879078845,1422.96,0.00030136,120]
[408548588,1773879078979,500.0,0.00030136,120]
[408548589,1773879079565,716.67,0.00030136,120]
[408548590,1773879081028,153.2494357,0.00030136,120]
[408548591,1773879082781,803.52,0.00030136,120]
[408548592,1773879089322,186.73573339,0.00030136,120]
[408548593,1773879091123,94935.77,0.00030136,120]
[408548594,1773879093524,1500.86,0.00030136,120]
[408548595,1773879094743,324.0268812,0.00030136,120]
[408548596,1773879096154,544.17,0.00030136,120]
[408548597,1773879096463,2380.84,0.00030136,120]
[408548598,1773879096737,500.0,0.00030136,120]
[408548599,1773879098164,210.43150406,0.00030136,120]
[408548600,1773879098495,500.0,0.00030136,120]
[408548601,1773879098893,500.0,0.00030136,120]
[408548602,1773879099243,500.0,0.00030136,120]
[408548603,1773879100870,500.0,0.00030136,120]
[408548604,1773879108891,500.0,0.00030136,120]
[408548605,1773879109136,1000.0,0.00030137,120]
[408548606,1773879109565,500.0,0.00030136,120]
[408548608,1773879114747,1602.97,0.00030136,120]
[408548609,1773879115653,500.0,0.00030136,120]
[408548610,1773879115791,500.0,0.00030136,120]
[408548611,1773879118005,549.69808866,0.00030136,120]
[408548612,1773879118964,249.3158522,0.00030136,120]
[408548613,1773879121334,500.0,0.00030136,120]
[408548614,1773879121663,500.0,0.00030136,120]
[408548615,1773879122135,547.00818737,0.00030136,120]
[408548616,1773879123398,180.69121102,0.00030136,120]
[408548617,1773879129367,896.39,0.00030136,120]
[408548618,1773879130248,467.45419897,0.00030136,120]
[408548619,1773879131344,705.4,0.00030136,120]
[408548620,1773879135031,526.08,0.00030136,120]
[408548621,1773879135826,500.0,0.00030136,120]
[408548622,1773879135950,500.0,0.00030136,120]
[408548623,1773879136484,614.07,0.00030136,120]
[408548624,1773879139080,1337.57,0.00030136,120]
[408548625,1773879139940,1398.21,0.00030136,120]
[408548626,1773879140059,447.18012603,0.00030136,120]
[408548627,1773879145397,500.0,0.00030136,120]
[408548628,1773879147947,500.0,0.00030136,120]
[408548629,1773879150439,192.84637452,0.00030136,120]
[408548630,1773879156710,255.89972797,0.00030136,120]
[408548631,1773879159296,500.0,0.00030136,120]
[408548632,1773879159967,500.0,0.00030136,120]
[408548633,1773879162523,500.0,0.00030136,120]
[408548634,1773879162972,1134.73,0.00030136,120]
[408548635,1773879164686,500.0,0.00030136,120]
[408548636,1773879164794,1484.87,0.00030136,120]
[408548637,1773879166205,860.88,0.00030136,120]
[408548638,1773879166847,3184.71,0.00030136,120]
[408548639,1773879169797,500.0,0.00030136,120]
[408548640,1773879170730,500.0,0.00030136,120]
[408548641,1773879172353,500.0,0.00030136,120]
[408548642,1773879173023,1786.29,0.00030136,120]
[408548643,1773879173988,500.0,0.00030136,120]
[408548644,1773879174154,263.1307453,0.00030136,120]
[408548645,1773879175576,1471.38,0.00030136,120]
[408548646,1773879176896,1051.44,0.00030136,120]
[408548647,1773879177278,500.0,0.00030136,120]
[408548648,1773879178108,500.0,0.00030136,120]
[408548649,1773879179093,181.18918083,0.00030136,120]
[408548650,1773879187881,500.0,0.00030136,120]
[408548651,1773879188029,500.0,0.0003,120]
[408548652,1773879188251,500.0,0.00030136,120]
[408548653,1773879188614,500.0,0.00030136,120]
[408548654,1773879189405,264.59302113,0.00030136,120]
[408548655,1773879190088,738.58,0.00030136,120]
[408548656,1773879190680,3583.28,0.00030136,120]
[408548658,1773879193138,2032.93,0.00030136,120]
[408548659,1773879193546,500.0,0.00030136,120]
[408548660,1773879196276,180.96702554,0.00030136,120]
[408548661,1773879204410,171.91482885,0.00030136,120]
[408548662,1773879211499,2774.91,0.00030136,120]
[408548663,1773879213433,500.0,0.00030136,120]
[408548664,1773879213671,338.97233206,0.00030136,120]
[408548665,1773879213773,500.0,0.00029,120]
[408548666,1773879214732,500.0,0.00030136,120]
[408548667,1773879218453,500.0,0.00030136,120]
[408548668,1773879220372,3992.0,0.00030136,120]
[408548669,1773879225116,500.0,0.00030136,120]
[408548670,1773879225930,500.0,0.00030136,120]
[408548671,1773879226174,342.9468415,0.00030136,120]
[408548672,1773879228168,500.0,0.00030136,120]
[408548673,1773879233354,500.0,0.00030136,120]
[408548674,1773879241505,206.91718007,0.00030136,120]
[408548675,1773879243024,500.0,0.00030136,120]
[408548676,1773879243147,1236.82,0.00030136,120]
[408548677,1773879243292,500.0,0.00030136,120]
[408548678,1773879243547,500.0,0.00030136,120]
[408548679,1773879243833,500.0,0.00030136,120]
[408548680,1773879244105,500.0,0.00030136,120]
[408548681,1773879244349,500.0,0.00030136,120]
[408548682,1773879244598,500.0,0.00030136,120]
[408548683,1773879244833,500.0,0.00030136,120]
[408548684,1773879245063,499.69784547,0.00030136,120]
[408548685,1773879245277,500.0,0.00030136,120]
[408548686,1773879247149,500.0,0.00030136,120]
[408548687,1773879249760,500.0,0.00030136,120]
[408548688,1773879251092,584.26,0.00030136,120]
[408548689,1773879253529,500.0,0.00030136,120]
[408548690,1773879255613,500.0,0.00030136,120]
[408548691,1773879255968,299.74845955,0.00030136,120]
[408548692,1773879256735,500.0,0.00030136,120]
[408548693,1773879258473,1242.59,0.00030136,120]
[408548694,1773879258746,544.08893974,0.00030136,120]
[408548695,1773879260109,500.0,0.00030136,120]
[408548696,1773879262599,500.0,0.00030136,120]
[408548697,1773879263818,500.0,0.00030136,120]
[408548698,1773879264957,1239.81,0.00030136,120]
[408548699,1773879270511,500.0,0.00030136,120]
[408548700,1773879271443,500.0,0.00030136,120]
[408548701,1773879274163,500.0,0.00030136,120]
[408548702,1773879275290,500.0,0.00030136,120]
[408548703,1773879283387,500.0,0.00030136,120]
[408548704,1773879283473,10000.0,0.0003,120]
[408548705,1773879286204,219.37826962,0.00030136,120]
[408548706,1773879286648,500.0,0.00030136,120]
[408548707,1773879287713,500.0,0.00030136,120]
[408548708,1773879287951,543.66,0.00030136,120]
[408548709,1773879291171,500.0,0.00030136,120]
[408548710,1773879291527,22125.05350936,0.0003,120]
[408548711,1773879292679,1595.53,0.00030136,120]
[408548712,1773879299032,686.81,0.00030136,120]
[408548713,1773879302586,500.0,0.00030136,120]
[408548714,1773879308711,770.39,0.00030136,120]
[408548715,1773879308773,500.0,0.00030136,120]
[408548716,1773879310602,500.0,0.00030136,120]
[408548717,1773879310722,5000.0,0.0003,120]
[408548718,1773879314822,500.0,0.00030136,120]
[408548719,1773879315409,5000.0,0.0003,120]
[408548720,1773879315929,90980.12,0.00030136,120]
[408548721,1773879316097,500.0,0.00030136,120]
[408548722,1773879320311,500.0,0.00030136,120]
[408548723,1773879320744,208.12671166,0.00030136,120]
[408548724,1773879327479,500.0,0.00030136,120]
[408548725,1773879329023,500.0,0.00030136,120]
[408548726,1773879330593,381.3519879,0.00030136,120]
[408548727,1773879331308,500.0,0.00030136,120]
[408548728,1773879334791,500.0,0.00030136,120]
[408548729,1773879336152,500.0,0.00030136,120]
[408548730,1773879341095,500.0,0.00030136,120]
[408548731,1773879341206,500.0,0.00030136,120]
[408548732,1773879342461,333.37729486,0.00030136,120]
[408548733,1773879344262,500.0,0.00030136,120]
[408548734,1773879344500,500.0,0.00030136,120]
[408548735,1773879345112,676.01,0.00030136,120]
[408548736,1773879346842,500.0,0.00030136,120]
[408548737,1773879349210,500.0,0.00030136,120]
[408548738,1773879351141,500.0,0.00030136,120]
[408548739,1773879352921,1281.84,0.00030136,120]
[408548740,1773879360513,500.0,0.00030136,120]
[408548741,1773879364478,500.0,0.00030136,120]
[408548742,1773879366351,176.21015925,0.00030136,120]
[408548743,1773879366884,176.82,8.489e-05,2]
[408548744,1773879371304,500.0,0.00030136,120]
[408548745,1773879374975,500.0,0.00030136,120]
[408548746,1773879377415,522.625053,0.00030136,120]
[408548747,1773879378930,352.44325108,0.00030136,120]
[408548748,1773879380489,3052.01,0.00030136,120]
[408548749,1773879380943,1339.95,0.00030136,120]
[408548750,1773879381468,500.0,0.00030136,120]
[408548751,1773879381597,500.0,0.00030136,120]
[408548752,1773879385110,1410.07,0.00030136,120]
[408548753,1773879386026,161.48268921,0.00030136,120]
[408548754,1773879389617,500.0,0.00030136,120]
[408548755,1773879391949,296.75589151,0.00030136,120]
[408548756,1773879400421,803.76,0.00030136,120]
[408548757,1773879400878,2538.15,0.00030136,120]
[408548758,1773879401651,510.8288895,0.00030136,120]
[408548759,1773879402148,380.37717237,0.00030136,120]
[408548760,1773879409019,-3545.98,0.00010574,2]
[408548761,1773879409050,-908.05,0.00010612,2]
[408548762,1773879409095,-1091.95,0.00010612,2]
[408548763,1773879409244,-283.93143272,0.00010966,2]
[408548764,1773879409279,-300.0,0.00011054,2]
[408548765,1773879409309,-4027.07676226,0.00011055,2]
[408548766,1773879409379,-777.99361004,0.00011055,2]
[408548767,1773879409418,-1114.819949,0.00011176,2]
[408548768,1773879409448,-500.0,0.00011233,2]
[408548769,1773879409477,-500.0,0.0001126,2]
[408548770,1773879409510,-500.0,0.0001137,2]
[408548771,1773879409547,-500.0,0.0001146,2]
[408548772,1773879409577,-500.0,0.00011464,2]
[408548773,1773879409609,-500.0,0.00011466,2]
[408548774,1773879409642,-500.0,0.0001147,2]
[408548775,1773879409670,-270.370102,0.00011473,2]
[408548776,1773879409865,-229.629898,0.00011473,2]
[408548777,1773879411879,-500.0,0.0001148,2]
[408548778,1773879411909,-500.0,0.00011482,2]
[408548779,1773879411938,-500.0,0.00011484,2]
[408548780,1773879411965,-500.0,0.00011485,2]
[408548781,1773879411995,-500.0,0.00011486,2]
[408548782,1773879412024,-500.0,0.00011491,2]
[408548783,1773879412055,-500.0,0.00011491,2]
[408548784,1773879412086,-500.0,0.000115,2]
[408548785,1773879412119,-632.0,0.00011507,2]
[408548786,1773879412149,-236.01,0.00011508,2]
[408548787,1773879412250,-263.99,0.00011508,2]
[408548788,1773879412277,-549.26805747,0.00011515,2]
[408548789,1773879412305,-500.0,0.00011517,2]
[408548790,1773879412332,-500.0,0.00011518,2]
[408548791,1773879412359,-500.0,0.00011518,2]
[408548792,1773879412386,-500.0,0.00011524,2]
[408548793,1773879412413,-500.0,0.00011526,2]
[408548794,1773879412442,-500.0,0.00011528,2]
[408548795,1773879412470,-500.0,0.0001153,2]
[408548796,1773879412497,-500.0,0.00011532,2]
[408548797,1773879412658,-500.0,0.00011536,2]
[408548798,1773879412687,-500.0,0.00011552,2]
[408548799,1773879412714,-500.0,0.00011554,2]
[408548800,1773879412742,-384.90817506,0.00011557,2]
[408548801,1773879412770,-1113.09106507,0.00011557,2]
[408548802,1773879412799,-500.0,0.00011566,2]
[408548803,1773879412826,-500.0,0.00011571,2]
[408548804,1773879412854,-500.0,0.00011573,2]
[408548805,1773879412881,-500.0,0.00011573,2]
[408548806,1773879413034,1423.0,0.00030136,120]
[408548807,1773879413779,-137.48388506,0.00011581,2]
[408548808,1773879413797,-362.51611494,0.00011581,2]
[408548809,1773879413807,-137.48388506,0.00011588,2]
[408548810,1773879413821,-4.01151974,0.00011588,2]
[408548811,1773879415035,-358.5045952,0.00011588,2]
[408548812,1773879415064,-500.0,0.00011593,2]
[408548813,1773879415094,-500.0,0.00011594,2]
[408548814,1773879415123,-213.77246219,0.00011595,2]
[408548815,1773879415162,-500.0,0.00011605,2]
[408548816,1773879415192,-500.0,0.00011613,2]
[408548817,1773879415220,-500.0,0.00011616,2]
[408548818,1773879415248,-500.0,0.00011621,2]
[408548819,1773879415276,-500.0,0.00011622,2]
[408548820,1773879415305,-500.0,0.00011622,2]
[408548821,1773879415335,-355.45588522,0.00011624,2]
[408548822,1773879415518,-144.54411478,0.00011624,2]
[408548823,1773879418067,-500.0,0.00011625,2]
[408548824,1773879418099,-500.0,0.00011626,2]
[408548825,1773879418128,-1722.45881604,0.00011627,2]
[408548826,1773879418157,-500.0,0.00011631,2]
[408548827,1773879418186,-500.0,0.00011638,2]
[408548828,1773879418214,-500.0,0.00011638,2]
[408548829,1773879418241,-500.0,0.00011638,2]
[408548830,1773879418270,-55.09236792,0.00011639,2]
[408548831,1773879418361,-444.90763208,0.00011639,2]
[408548832,1773879418390,-500.0,0.00011642,2]
[408548833,1773879418419,-500.0,0.00011648,2]
[408548834,1773879418448,-300.0,0.00011654,2]
[408548835,1773879418621,-144.90763208,0.00011654,2]
[408548836,1773879418635,-300.0,0.00011654,2]
[408548837,1773879418651,-6510.19473584,0.00011654,2]
[408548838,1773879418669,-10000.01,0.00011654,2]
[408548839,1773879420202,312.4956023,0.00030136,120]
[408548840,1773879423956,1007.63,0.00030136,120]
[408548841,1773879424480,500.0,0.00030136,120]
[408548842,1773879426072,500.0,0.00030136,120]
[408548843,1773879435070,500.0,0.00030136,120]
[408548844,1773879444814,500.0,0.00030136,120]
[408548845,1773879456240,500.0,0.00030136,120]
[408548846,1773879459476,500.0,0.00030136,120]
[408548847,1773879462318,784.85,0.00030136,120]
[408548848,1773879463446,433.8686985,0.00030136,120]
[408548849,1773879469972,500.0,0.00030136,120]
[408548850,1773879478330,500.0,0.00030136,120]
[408548851,1773879480225,500.0,0.00030136,120]
[408548852,1773879482331,500.0,0.00030136,120]
[408548853,1773879490135,500.0,0.00030136,120]
[408548854,1773879490222,645.89,0.00030136,120]
[408548855,1773879494386,559.92,0.00030136,120]
[408548856,1773879498238,500.0,0.00030136,120]
[408548857,1773879500357,167.69960796,0.00030136,120]
[408548858,1773879501139,500.0,0.00030136,120]